[Event "*** Titled Tuesday Blitz"]
[Site "Chess.com"]
[Date "2020.03.03"]
[Round "8"]
[White "M1711"]
[Black "Chessalary"]
[Result "0-1"]
[WhiteElo "2523"]
[BlackElo "2249"]
[TimeControl "180+1"]
[EndTime "10:28:47 PST"]
[Termination "Chessalary won by resignation"]

1. e4 {[%clk 0:02:22.6]} 1... c5 {[%clk 0:02:56.6]} 2. Nf3 {[%clk 0:02:22.7]}
2... d6 {[%clk 0:02:56.8]} 3. c3 {[%clk 0:02:20.8]} 3... g6 {[%clk 0:02:51.6]}
4. d4 {[%clk 0:02:19.7]} 4... cxd4 {[%clk 0:02:52.5]} 5. cxd4 {[%clk 0:02:20.6]}
5... Nf6 {[%clk 0:02:52.4]} 6. Nc3 {[%clk 0:02:20.8]} 6... Bg7 {[%clk
0:02:51.6]} 7. Be2 {[%clk 0:02:20]} 7... O-O {[%clk 0:02:52.1]} 8. O-O {[%clk
0:02:19.9]} 8... Bg4 {[%clk 0:02:49.5]} 9. h3 {[%clk 0:02:20.1]} 9... Bd7 {[%clk
0:02:48.5]} 10. e5 {[%clk 0:02:18.2]} 10... dxe5 {[%clk 0:02:47.7]} 11. dxe5
{[%clk 0:02:19.1]} 11... Ne8 {[%clk 0:02:48.6]} 12. e6 {[%clk 0:02:16.7]} 12...
fxe6 {[%clk 0:02:46.6]} 13. Bc4 {[%clk 0:02:13.2]} 13... Nd6 {[%clk 0:02:44.3]}
14. Bb3 {[%clk 0:02:10.1]} 14... Kh8 {[%clk 0:02:42.9]} 15. Qe2 {[%clk
0:02:02.7]} 15... Nc6 {[%clk 0:02:41.9]} 16. Bxe6 {[%clk 0:01:49.5]} 16... Bxe6
{[%clk 0:02:37.8]} 17. Qxe6 {[%clk 0:01:50.4]} 17... Rxf3 {[%clk 0:02:17.2]} 18.
gxf3 {[%clk 0:01:51.3]} 18... Ne5 {[%clk 0:02:18.1]} 19. Qd5 {[%clk 0:01:42.5]}
19... Qf8 {[%clk 0:02:15.8]} 20. Kg2 {[%clk 0:01:35.6]} 20... Nf5 {[%clk
0:02:12.1]} 21. f4 {[%clk 0:01:23.8]} 21... Nc6 {[%clk 0:02:01]} 22. Be3 {[%clk
0:01:21]} 22... Rd8 {[%clk 0:01:59.6]} 23. Qe4 {[%clk 0:01:20.5]} 23... Nxe3+
{[%clk 0:01:49.8]} 24. fxe3 {[%clk 0:01:21.4]} 24... Rd2+ {[%clk 0:01:49.5]} 25.
Rf2 {[%clk 0:01:20.9]} 25... Qd8 {[%clk 0:01:48.3]} 26. Qf3 {[%clk 0:01:04.6]}
26... Rd3 {[%clk 0:01:41.2]} 27. Ne4 {[%clk 0:00:56.4]} 27... Nd4 {[%clk
0:01:26.7]} 28. Qg4 {[%clk 0:00:44.6]} 28... Rxe3 {[%clk 0:01:23.7]} 29. Ng5
{[%clk 0:00:41.4]} 29... Qd5+ {[%clk 0:01:22.8]} 30. Kh2 {[%clk 0:00:38.8]}
30... Nf5 {[%clk 0:01:02.4]} 31. Rd1 {[%clk 0:00:37.3]} 31... Bd4 {[%clk
0:00:58.3]} 32. Rg2 {[%clk 0:00:27.2]} 32... h5 {[%clk 0:00:54.2]} 33. Nf7+
{[%clk 0:00:13.5]} 33... Qxf7 {[%clk 0:00:46.6]} 34. Qxg6 {[%clk 0:00:13.6]}
34... Qxg6 {[%clk 0:00:47.5]} 0-1

[Event "*** Titled Tuesday Blitz"]
[Site "Chess.com"]
[Date "2020.03.03"]
[Round "8"]
[White "chigorin28"]
[Black "GMSrinath"]
[Result "0-1"]
[WhiteElo "2683"]
[BlackElo "2869"]
[TimeControl "180+1"]
[EndTime "10:28:54 PST"]
[Termination "GMSrinath won on time"]

1. e4 {[%clk 0:03:00.9]} 1... c5 {[%clk 0:02:59.1]} 2. Nf3 {[%clk 0:03:01.2]}
2... d6 {[%clk 0:02:58.2]} 3. d4 {[%clk 0:03:01.6]} 3... cxd4 {[%clk 0:02:59.1]}
4. Nxd4 {[%clk 0:03:02.5]} 4... Nf6 {[%clk 0:02:59.5]} 5. Nc3 {[%clk 0:03:03.1]}
5... Nc6 {[%clk 0:03:00.1]} 6. Bg5 {[%clk 0:03:02.4]} 6... e6 {[%clk 0:03:00.5]}
7. Qd2 {[%clk 0:03:01.5]} 7... a6 {[%clk 0:03:01.1]} 8. O-O-O {[%clk 0:02:59]}
8... Be7 {[%clk 0:03:01.6]} 9. f4 {[%clk 0:02:57.5]} 9... Bd7 {[%clk 0:03:00.3]}
10. Bh4 {[%clk 0:02:35.5]} 10... O-O {[%clk 0:02:44.2]} 11. Bf2 {[%clk
0:02:35.2]} 11... Ng4 {[%clk 0:02:28.5]} 12. Bg1 {[%clk 0:02:23.8]} 12... Nxd4
{[%clk 0:02:27.7]} 13. Bxd4 {[%clk 0:02:23]} 13... e5 {[%clk 0:02:28.3]} 14. Bg1
{[%clk 0:02:14.4]} 14... exf4 {[%clk 0:02:27.6]} 15. Kb1 {[%clk 0:02:06.7]}
15... Ne5 {[%clk 0:02:24]} 16. Qxf4 {[%clk 0:02:00.9]} 16... Be6 {[%clk
0:02:15.1]} 17. Be2 {[%clk 0:01:52]} 17... Rc8 {[%clk 0:02:10.6]} 18. Bd4 {[%clk
0:01:45.9]} 18... Qa5 {[%clk 0:01:59.5]} 19. a3 {[%clk 0:01:18.7]} 19... b5
{[%clk 0:01:55.8]} 20. Nd5 {[%clk 0:01:10.2]} 20... Bxd5 {[%clk 0:01:52.8]} 21.
exd5 {[%clk 0:01:10]} 21... Bf6 {[%clk 0:01:52.2]} 22. g4 {[%clk 0:00:57.4]}
22... Rfe8 {[%clk 0:01:26.2]} 23. c3 {[%clk 0:00:21.8]} 23... Qc7 {[%clk
0:01:06.7]} 24. Qf2 {[%clk 0:00:21.4]} 24... Nd7 {[%clk 0:01:00.4]} 25. Bxf6
{[%clk 0:00:18]} 25... Nxf6 {[%clk 0:01:01.3]} 26. g5 {[%clk 0:00:17.4]} 26...
Ne4 {[%clk 0:01:01.1]} 27. Qf3 {[%clk 0:00:08.7]} 27... Nxg5 {[%clk 0:00:37.5]}
28. Qg4 {[%clk 0:00:08.6]} 28... Ne4 {[%clk 0:00:32.8]} 29. Rhg1 {[%clk
0:00:09]} 29... g6 {[%clk 0:00:33.3]} 30. Qf3 {[%clk 0:00:06.4]} 30... Re5
{[%clk 0:00:31.2]} 31. Bd3 {[%clk 0:00:04.6]} 31... Nc5 {[%clk 0:00:31.1]} 32.
Bc2 {[%clk 0:00:04.5]} 32... Qe7 {[%clk 0:00:30.8]} 33. Rgf1 {[%clk 0:00:01.6]}
33... f5 {[%clk 0:00:29.7]} 34. h4 {[%clk 0:00:01.8]} 34... Qxh4 {[%clk
0:00:26.6]} 35. Rh1 {[%clk 0:00:01.6]} 35... Qe7 {[%clk 0:00:27.1]} 36. Qh3
{[%clk 0:00:01.5]} 36... Ne4 {[%clk 0:00:26.1]} 0-1

[Event "*** Titled Tuesday Blitz"]
[Site "Chess.com"]
[Date "2020.03.03"]
[Round "8"]
[White "David_Paravyan"]
[Black "vladislavkovalev"]
[Result "0-1"]
[WhiteElo "2822"]
[BlackElo "2901"]
[TimeControl "180+1"]
[EndTime "10:28:57 PST"]
[Termination "vladislavkovalev won on time"]

1. d4 {[%clk 0:03:00.1]} 1... Nf6 {[%clk 0:03:00.1]} 2. c4 {[%clk 0:03:00.6]}
2... g6 {[%clk 0:02:59.5]} 3. Nc3 {[%clk 0:02:55.9]} 3... Bg7 {[%clk 0:03:00.1]}
4. e4 {[%clk 0:02:55.8]} 4... d6 {[%clk 0:03:00.9]} 5. Nf3 {[%clk 0:02:47.2]}
5... O-O {[%clk 0:03:01.2]} 6. Be2 {[%clk 0:02:47.8]} 6... e5 {[%clk 0:03:01.5]}
7. O-O {[%clk 0:02:48.4]} 7... Na6 {[%clk 0:02:59.2]} 8. Re1 {[%clk 0:02:45.5]}
8... Qe8 {[%clk 0:02:59.2]} 9. d5 {[%clk 0:02:44.1]} 9... Nc5 {[%clk 0:02:57.1]}
10. Qc2 {[%clk 0:02:43.9]} 10... a5 {[%clk 0:02:56.2]} 11. Be3 {[%clk
0:02:44.4]} 11... Ng4 {[%clk 0:02:50.7]} 12. Bxc5 {[%clk 0:02:42.6]} 12... dxc5
{[%clk 0:02:51.6]} 13. h3 {[%clk 0:02:41.4]} 13... Nh6 {[%clk 0:02:46.7]} 14.
Nb5 {[%clk 0:02:02.6]} 14... Qe7 {[%clk 0:02:45.9]} 15. Rad1 {[%clk 0:02:01.8]}
15... Ra6 {[%clk 0:02:40.8]} 16. Nd2 {[%clk 0:01:45.6]} 16... f6 {[%clk
0:02:28]} 17. Nb1 {[%clk 0:01:45.5]} 17... f5 {[%clk 0:02:12.6]} 18. N1c3 {[%clk
0:01:44.8]} 18... Nf7 {[%clk 0:02:09.1]} 19. Bd3 {[%clk 0:00:49.2]} 19... Rf6
{[%clk 0:02:07.7]} 20. d6 {[%clk 0:00:42.9]} 20... cxd6 {[%clk 0:01:58.7]} 21.
Nd5 {[%clk 0:00:42.5]} 21... Qd8 {[%clk 0:01:59.4]} 22. Nxf6+ {[%clk 0:00:41]}
22... Qxf6 {[%clk 0:02:00.3]} 23. Nc7 {[%clk 0:00:38.6]} 23... f4 {[%clk
0:01:58.1]} 24. Nd5 {[%clk 0:00:38.5]} 24... Qh4 {[%clk 0:01:58.4]} 25. Be2
{[%clk 0:00:38.1]} 25... h5 {[%clk 0:01:55]} 26. Qc3 {[%clk 0:00:33.1]} 26...
Kh7 {[%clk 0:01:41.7]} 27. Rd3 {[%clk 0:00:29.3]} 27... Ng5 {[%clk 0:01:28]} 28.
Bd1 {[%clk 0:00:24.2]} 28... Bh6 {[%clk 0:01:15.5]} 29. Ne7 {[%clk 0:00:23.5]}
29... Nxh3+ {[%clk 0:01:08.8]} 30. gxh3 {[%clk 0:00:15.6]} 30... Qxe7 {[%clk
0:01:08.9]} 31. Kh2 {[%clk 0:00:16.1]} 31... Qh4 {[%clk 0:01:03.1]} 32. Rf1
{[%clk 0:00:13.4]} 32... g5 {[%clk 0:00:52.1]} 33. Rxd6 {[%clk 0:00:13]} 33...
f3 {[%clk 0:00:52.6]} 34. Bxf3 {[%clk 0:00:04]} 34... Qxh3+ {[%clk 0:00:43.4]}
35. Kg1 {[%clk 0:00:04.5]} 35... Rxf3 {[%clk 0:00:44]} 36. Qxe5 {[%clk
0:00:04.1]} 36... Qg4+ {[%clk 0:00:44.2]} 0-1

[Event "*** Titled Tuesday Blitz"]
[Site "Chess.com"]
[Date "2020.03.03"]
[Round "8"]
[White "GukeshDommaraju"]
[Black "Man-Chuk"]
[Result "0-1"]
[WhiteElo "2649"]
[BlackElo "2773"]
[TimeControl "180+1"]
[EndTime "10:28:57 PST"]
[Termination "Man-Chuk won on time"]

1. Nf3 {[%clk 0:03:00.9]} 1... d5 {[%clk 0:02:58.1]} 2. g3 {[%clk 0:03:00.6]}
2... g6 {[%clk 0:02:58]} 3. c4 {[%clk 0:03:00.3]} 3... dxc4 {[%clk 0:02:56.9]}
4. Na3 {[%clk 0:03:00.2]} 4... Bg7 {[%clk 0:02:56]} 5. Nxc4 {[%clk 0:03:00.4]}
5... Nc6 {[%clk 0:02:56.5]} 6. Bg2 {[%clk 0:03:00.8]} 6... e5 {[%clk 0:02:55.8]}
7. d3 {[%clk 0:03:01.2]} 7... e4 {[%clk 0:02:51.9]} 8. dxe4 {[%clk 0:03:00.7]}
8... Qxd1+ {[%clk 0:02:51.2]} 9. Kxd1 {[%clk 0:03:01.6]} 9... Nf6 {[%clk
0:02:40.2]} 10. e5 {[%clk 0:02:52.4]} 10... Ng4 {[%clk 0:02:34.8]} 11. Ke1
{[%clk 0:02:35.8]} 11... Be6 {[%clk 0:02:00.6]} 12. Ne3 {[%clk 0:02:24.7]} 12...
Ngxe5 {[%clk 0:01:48.5]} 13. Nxe5 {[%clk 0:02:22]} 13... Bxe5 {[%clk 0:01:49.4]}
14. Nd5 {[%clk 0:02:18.8]} 14... O-O-O {[%clk 0:01:40.1]} 15. e4 {[%clk
0:01:39.9]} 15... f5 {[%clk 0:01:18.2]} 16. Bg5 {[%clk 0:01:31.8]} 16... Rd7
{[%clk 0:01:09.3]} 17. Rd1 {[%clk 0:01:01.7]} 17... fxe4 {[%clk 0:01:06.6]} 18.
Bxe4 {[%clk 0:00:57.4]} 18... Re8 {[%clk 0:00:59.9]} 19. Ne3 {[%clk 0:00:26.7]}
19... Bxb2 {[%clk 0:00:58]} 20. Bxc6 {[%clk 0:00:24.3]} 20... bxc6 {[%clk
0:00:53.3]} 21. Rb1 {[%clk 0:00:21.7]} 21... Bc3+ {[%clk 0:00:50.3]} 22. Ke2
{[%clk 0:00:14.6]} 22... Rd2+ {[%clk 0:00:48.3]} 23. Kf1 {[%clk 0:00:09.9]}
23... Bh3+ {[%clk 0:00:46]} 24. Kg1 {[%clk 0:00:08.2]} 24... Rxa2 {[%clk
0:00:38.8]} 25. Bf4 {[%clk 0:00:04.7]} 25... Re4 {[%clk 0:00:38.3]} 26. Rc1
{[%clk 0:00:04.3]} 26... Rea4 {[%clk 0:00:33.9]} 27. Nf1 {[%clk 0:00:02.5]}
27... Ra1 {[%clk 0:00:32.8]} 28. f3 {[%clk 0:00:02.5]} 28... Bd4+ {[%clk
0:00:27.9]} 0-1

[Event "*** Titled Tuesday Blitz"]
[Site "Chess.com"]
[Date "2020.03.03"]
[Round "8"]
[White "swayamsm"]
[Black "Monmoransy"]
[Result "0-1"]
[WhiteElo "2471"]
[BlackElo "2597"]
[TimeControl "180+1"]
[EndTime "10:28:57 PST"]
[Termination "Monmoransy won by resignation"]

1. d4 {[%clk 0:02:56.6]} 1... d5 {[%clk 0:02:59.6]} 2. Nf3 {[%clk 0:02:52.6]}
2... Bf5 {[%clk 0:02:58.6]} 3. Bf4 {[%clk 0:02:52.8]} 3... e6 {[%clk 0:02:57.4]}
4. e3 {[%clk 0:02:53.2]} 4... Nf6 {[%clk 0:02:54]} 5. Nbd2 {[%clk 0:02:49]} 5...
Be7 {[%clk 0:02:50.1]} 6. Bd3 {[%clk 0:02:46.2]} 6... Bg6 {[%clk 0:02:46.8]} 7.
Ne5 {[%clk 0:02:43.9]} 7... Nbd7 {[%clk 0:02:46]} 8. Nxg6 {[%clk 0:02:35.1]}
8... hxg6 {[%clk 0:02:45.2]} 9. O-O {[%clk 0:02:35.1]} 9... Bd6 {[%clk
0:02:44.6]} 10. Bxd6 {[%clk 0:02:33]} 10... cxd6 {[%clk 0:02:44.1]} 11. Qe2
{[%clk 0:02:32.3]} 11... O-O {[%clk 0:02:39.6]} 12. c3 {[%clk 0:02:23.5]} 12...
a6 {[%clk 0:02:39.2]} 13. f3 {[%clk 0:02:20.2]} 13... Re8 {[%clk 0:02:33.2]} 14.
Kh1 {[%clk 0:02:19.5]} 14... Rc8 {[%clk 0:02:31.7]} 15. Rae1 {[%clk 0:02:17.2]}
15... e5 {[%clk 0:02:29.8]} 16. Qf2 {[%clk 0:02:14.6]} 16... Re6 {[%clk
0:02:26.4]} 17. e4 {[%clk 0:02:10.3]} 17... exd4 {[%clk 0:02:12.5]} 18. Qxd4
{[%clk 0:02:06.2]} 18... Qb6 {[%clk 0:02:04.4]} 19. Qxb6 {[%clk 0:02:02.1]}
19... Nxb6 {[%clk 0:02:03.6]} 20. exd5 {[%clk 0:02:02.6]} 20... Rxe1 {[%clk
0:01:57.8]} 21. Rxe1 {[%clk 0:02:03.5]} 21... Nbxd5 {[%clk 0:01:57]} 22. g3
{[%clk 0:02:03.6]} 22... Kf8 {[%clk 0:01:55.5]} 23. Kg2 {[%clk 0:02:03.3]} 23...
b5 {[%clk 0:01:52.7]} 24. Kf2 {[%clk 0:02:03.1]} 24... Nb6 {[%clk 0:01:49.4]}
25. Nb3 {[%clk 0:01:59.8]} 25... Na4 {[%clk 0:01:47.8]} 26. Re2 {[%clk
0:01:59.3]} 26... Nd7 {[%clk 0:01:44]} 27. Be4 {[%clk 0:01:57.6]} 27... Rc7
{[%clk 0:01:39.1]} 28. Nd4 {[%clk 0:01:53.7]} 28... Ne5 {[%clk 0:01:37.1]} 29.
f4 {[%clk 0:01:47.3]} 29... Nc4 {[%clk 0:01:28.7]} 30. b3 {[%clk 0:01:42.5]}
30... Nxc3 {[%clk 0:01:28.5]} 31. bxc4 {[%clk 0:01:42]} 31... Nxe2 {[%clk
0:01:28.4]} 32. Kxe2 {[%clk 0:01:42.4]} 32... Rxc4 {[%clk 0:01:28]} 33. Kd3
{[%clk 0:01:41.9]} 33... Rc1 {[%clk 0:01:19]} 34. Nb3 {[%clk 0:01:19.6]} 34...
Rc7 {[%clk 0:01:08.2]} 35. Kd2 {[%clk 0:01:13]} 35... Ke7 {[%clk 0:01:07.5]} 36.
Bd5 {[%clk 0:01:13]} 36... b4 {[%clk 0:01:05.9]} 37. Na5 {[%clk 0:01:10.3]}
37... Rc5 {[%clk 0:00:55.5]} 38. Nc6+ {[%clk 0:01:10.3]} 38... Kd7 {[%clk
0:00:53.6]} 39. Nxb4 {[%clk 0:01:07.6]} 39... a5 {[%clk 0:00:53.1]} 40. Bxf7
{[%clk 0:00:59.3]} 40... axb4 {[%clk 0:00:52.2]} 41. Bxg6 {[%clk 0:00:59.9]}
41... Ke7 {[%clk 0:00:50.3]} 42. Bc2 {[%clk 0:00:58.5]} 42... Rc3 {[%clk
0:00:46.1]} 43. Bd3 {[%clk 0:00:54.1]} 43... d5 {[%clk 0:00:44.3]} 44. h4 {[%clk
0:00:50.8]} 44... Ra3 {[%clk 0:00:42.7]} 45. g4 {[%clk 0:00:48.4]} 45... Rxa2+
{[%clk 0:00:41.9]} 46. Ke3 {[%clk 0:00:49.1]} 46... b3 {[%clk 0:00:38.9]} 47. h5
{[%clk 0:00:48.4]} 47... Rg2 {[%clk 0:00:37.1]} 48. g5 {[%clk 0:00:48.2]} 48...
b2 {[%clk 0:00:35.5]} 49. Kd4 {[%clk 0:00:46.7]} 49... Rd2 {[%clk 0:00:32.4]}
0-1

[Event "*** Titled Tuesday Blitz"]
[Site "Chess.com"]
[Date "2020.03.03"]
[Round "8"]
[White "Vusatiuk_Vladimir"]
[Black "ShahMatKanal"]
[Result "1-0"]
[WhiteElo "2340"]
[BlackElo "2489"]
[TimeControl "180+1"]
[EndTime "10:29:01 PST"]
[Termination "Vusatiuk_Vladimir won by resignation"]

1. e4 {[%clk 0:03:00]} 1... c5 {[%clk 0:02:59.1]} 2. Nf3 {[%clk 0:03:00.1]} 2...
Nc6 {[%clk 0:02:59]} 3. Bb5 {[%clk 0:02:59.6]} 3... g6 {[%clk 0:02:58.9]} 4.
Bxc6 {[%clk 0:02:59.9]} 4... dxc6 {[%clk 0:02:59.8]} 5. h3 {[%clk 0:02:59.1]}
5... Bg7 {[%clk 0:03:00.1]} 6. d3 {[%clk 0:02:59.6]} 6... e5 {[%clk 0:03:00.4]}
7. O-O {[%clk 0:02:59.3]} 7... Qe7 {[%clk 0:03:00.6]} 8. a3 {[%clk 0:02:59.3]}
8... Nf6 {[%clk 0:03:00.5]} 9. Bd2 {[%clk 0:02:55.3]} 9... O-O {[%clk
0:02:57.2]} 10. b4 {[%clk 0:02:54]} 10... Nd7 {[%clk 0:02:47]} 11. Qe2 {[%clk
0:02:47.1]} 11... Rd8 {[%clk 0:02:42.9]} 12. c4 {[%clk 0:02:45.3]} 12... Nf8
{[%clk 0:02:26.7]} 13. Nc3 {[%clk 0:02:18.7]} 13... Ne6 {[%clk 0:02:22.5]} 14.
b5 {[%clk 0:02:14.2]} 14... Nf4 {[%clk 0:02:10.7]} 15. Bxf4 {[%clk 0:02:11.2]}
15... exf4 {[%clk 0:02:11.6]} 16. e5 {[%clk 0:01:58.2]} 16... Bf5 {[%clk
0:02:08.2]} 17. Rad1 {[%clk 0:01:54]} 17... Rd7 {[%clk 0:02:03.3]} 18. bxc6
{[%clk 0:01:53.8]} 18... bxc6 {[%clk 0:02:03.5]} 19. Ne4 {[%clk 0:01:31.9]}
19... Re8 {[%clk 0:01:48.8]} 20. Rfe1 {[%clk 0:01:31.6]} 20... Bxe5 {[%clk
0:01:36.4]} 21. Nxe5 {[%clk 0:01:28.9]} 21... Qxe5 {[%clk 0:01:31.2]} 22. Nf6+
{[%clk 0:01:27.7]} 22... Qxf6 {[%clk 0:01:31.1]} 23. Qxe8+ {[%clk 0:01:28]}
23... Kg7 {[%clk 0:01:31.6]} 24. Qe5 {[%clk 0:01:17.9]} 24... Rxd3 {[%clk
0:01:24.9]} 25. Qxc5 {[%clk 0:00:52.6]} 25... Rc3 {[%clk 0:01:04.5]} 26. Rd6
{[%clk 0:00:48.7]} 26... Rxc4 {[%clk 0:00:59.2]} 27. Qxc4 {[%clk 0:00:40.9]}
27... Qxd6 {[%clk 0:00:59.2]} 28. a4 {[%clk 0:00:40.8]} 28... g5 {[%clk
0:00:54.9]} 29. Rc1 {[%clk 0:00:35.6]} 29... Bd7 {[%clk 0:00:41.4]} 30. a5
{[%clk 0:00:35.6]} 30... h5 {[%clk 0:00:37.7]} 31. Qc3+ {[%clk 0:00:27.6]} 31...
f6 {[%clk 0:00:36.9]} 32. Qb3 {[%clk 0:00:22.8]} 32... Qe7 {[%clk 0:00:17.4]}
33. Qb7 {[%clk 0:00:21.1]} 33... f3 {[%clk 0:00:14.5]} 34. Rd1 {[%clk
0:00:19.2]} 34... fxg2 {[%clk 0:00:06.5]} 1-0

[Event "*** Titled Tuesday Blitz"]
[Site "Chess.com"]
[Date "2020.03.03"]
[Round "8"]
[White "MartinCerveny"]
[Black "Noam_Vitenberg"]
[Result "1-0"]
[WhiteElo "2626"]
[BlackElo "2430"]
[TimeControl "180+1"]
[EndTime "10:29:05 PST"]
[Termination "MartinCerveny won by resignation"]

1. d4 {[%clk 0:03:00.9]} 1... d5 {[%clk 0:02:58.6]} 2. c4 {[%clk 0:03:00.8]}
2... e6 {[%clk 0:02:58.3]} 3. Nc3 {[%clk 0:03:00.2]} 3... Bb4 {[%clk 0:02:57]}
4. Nf3 {[%clk 0:02:58.4]} 4... Nf6 {[%clk 0:02:55.9]} 5. Qc2 {[%clk 0:02:57.6]}
5... c5 {[%clk 0:02:51.1]} 6. dxc5 {[%clk 0:02:52.1]} 6... d4 {[%clk 0:02:45.5]}
7. a3 {[%clk 0:02:47.3]} 7... Ba5 {[%clk 0:02:39.4]} 8. b4 {[%clk 0:02:44.6]}
8... dxc3 {[%clk 0:02:39.2]} 9. bxa5 {[%clk 0:02:44.7]} 9... Qxa5 {[%clk
0:02:38.5]} 10. Be3 {[%clk 0:02:37.9]} 10... O-O {[%clk 0:02:37.2]} 11. Bd4
{[%clk 0:02:34.6]} 11... Nbd7 {[%clk 0:02:30.7]} 12. e3 {[%clk 0:02:31]} 12...
Nxc5 {[%clk 0:02:25.4]} 13. Bxc3 {[%clk 0:02:30]} 13... Qc7 {[%clk 0:02:17.6]}
14. Be2 {[%clk 0:02:26.8]} 14... b6 {[%clk 0:02:13.4]} 15. Be5 {[%clk
0:02:24.2]} 15... Qc6 {[%clk 0:02:00.2]} 16. Nd4 {[%clk 0:02:23.2]} 16... Qe4
{[%clk 0:01:56.4]} 17. Bxf6 {[%clk 0:02:04]} 17... Qxc2 {[%clk 0:01:51.8]} 18.
Nxc2 {[%clk 0:02:02.8]} 18... gxf6 {[%clk 0:01:52.4]} 19. Bf3 {[%clk 0:01:58.7]}
19... Bb7 {[%clk 0:01:52.1]} 20. Rd1 {[%clk 0:01:53.4]} 20... Rfd8 {[%clk
0:01:33.3]} 21. Ke2 {[%clk 0:01:52.6]} 21... e5 {[%clk 0:01:24.3]} 22. Bxb7
{[%clk 0:01:45.2]} 22... Nxb7 {[%clk 0:01:25.2]} 23. Nb4 {[%clk 0:01:37.7]}
23... Rac8 {[%clk 0:01:14.3]} 24. Rxd8+ {[%clk 0:01:35.8]} 24... Rxd8 {[%clk
0:01:15.2]} 25. Nd5 {[%clk 0:01:34.5]} 25... Kg7 {[%clk 0:01:14.3]} 26. h4
{[%clk 0:01:31.3]} 26... Nd6 {[%clk 0:01:06.8]} 27. Kd3 {[%clk 0:01:30.3]} 27...
b5 {[%clk 0:00:55.7]} 28. cxb5 {[%clk 0:01:25.4]} 28... Nxb5 {[%clk 0:00:50.3]}
29. e4 {[%clk 0:01:25.5]} 29... Nxa3 {[%clk 0:00:50.3]} 30. Ra1 {[%clk
0:01:17.3]} 30... Nb5 {[%clk 0:00:45.6]} 31. Ke3 {[%clk 0:01:15.8]} 31... f5
{[%clk 0:00:41.9]} 32. Ra5 {[%clk 0:01:08.1]} 32... a6 {[%clk 0:00:33.4]} 33.
Rxa6 {[%clk 0:01:03.4]} 33... fxe4 {[%clk 0:00:33.5]} 34. Kxe4 {[%clk
0:00:58.5]} 34... Rxd5 {[%clk 0:00:31.6]} 35. Kxd5 {[%clk 0:00:48.2]} 35... Nc7+
{[%clk 0:00:29.5]} 36. Kxe5 {[%clk 0:00:48.3]} 36... Nxa6 {[%clk 0:00:30.4]} 37.
g4 {[%clk 0:00:48.2]} 37... Nc7 {[%clk 0:00:30.5]} 38. f4 {[%clk 0:00:47.8]}
38... f6+ {[%clk 0:00:25.7]} 39. Kd6 {[%clk 0:00:45.6]} 39... Nb5+ {[%clk
0:00:25.6]} 40. Ke7 {[%clk 0:00:41.7]} 40... Nd4 {[%clk 0:00:22.2]} 41. f5
{[%clk 0:00:40.8]} 41... Nf3 {[%clk 0:00:20.2]} 42. g5 {[%clk 0:00:38.8]} 42...
fxg5 {[%clk 0:00:08]} 43. f6+ {[%clk 0:00:39.7]} 43... Kh6 {[%clk 0:00:07.9]}
44. f7 {[%clk 0:00:37.3]} 44... Ne5 {[%clk 0:00:06.7]} 45. f8=Q+ {[%clk
0:00:29.9]} 1-0

[Event "*** Titled Tuesday Blitz"]
[Site "Chess.com"]
[Date "2020.03.03"]
[Round "8"]
[White "Micki-taryan"]
[Black "gena217"]
[Result "0-1"]
[WhiteElo "3010"]
[BlackElo "3022"]
[TimeControl "180+1"]
[EndTime "10:29:09 PST"]
[Termination "gena217 won by resignation"]

1. d4 {[%clk 0:03:00.9]} 1... Nf6 {[%clk 0:02:58]} 2. Nf3 {[%clk 0:03:01.2]}
2... d5 {[%clk 0:02:57.7]} 3. c4 {[%clk 0:03:01.4]} 3... e6 {[%clk 0:02:57.9]}
4. Nc3 {[%clk 0:03:01.9]} 4... dxc4 {[%clk 0:02:56.7]} 5. e3 {[%clk 0:03:01.9]}
5... a6 {[%clk 0:02:56.5]} 6. a4 {[%clk 0:03:02.6]} 6... c5 {[%clk 0:02:56.7]}
7. Bxc4 {[%clk 0:03:03.2]} 7... Nc6 {[%clk 0:02:57.3]} 8. O-O {[%clk 0:03:02.9]}
8... Be7 {[%clk 0:02:55.8]} 9. dxc5 {[%clk 0:02:56.6]} 9... Qxd1 {[%clk
0:02:54.9]} 10. Rxd1 {[%clk 0:02:57.5]} 10... Bxc5 {[%clk 0:02:55.4]} 11. Be2
{[%clk 0:02:58.1]} 11... b6 {[%clk 0:02:54]} 12. Ne1 {[%clk 0:02:56.2]} 12...
Bb7 {[%clk 0:02:51.6]} 13. Nd3 {[%clk 0:02:56.5]} 13... Be7 {[%clk 0:02:51.9]}
14. e4 {[%clk 0:02:53.8]} 14... Nd4 {[%clk 0:02:42.8]} 15. f3 {[%clk 0:02:49.4]}
15... Rc8 {[%clk 0:02:30.5]} 16. Bf1 {[%clk 0:02:39.2]} 16... Nb3 {[%clk
0:02:25.6]} 17. Rb1 {[%clk 0:02:38.5]} 17... Nxc1 {[%clk 0:02:25.2]} 18. Rbxc1
{[%clk 0:02:39.4]} 18... Nd7 {[%clk 0:02:15.5]} 19. Kf2 {[%clk 0:02:32.1]} 19...
Nc5 {[%clk 0:02:09.7]} 20. Ne5 {[%clk 0:02:08.4]} 20... Nb3 {[%clk 0:02:03]} 21.
Rb1 {[%clk 0:02:08.9]} 21... Bc5+ {[%clk 0:01:55.2]} 22. Kg3 {[%clk 0:02:06.3]}
22... Bd4 {[%clk 0:01:38.2]} 23. Nc4 {[%clk 0:02:04.1]} 23... Ke7 {[%clk
0:01:37.7]} 24. Na2 {[%clk 0:01:51.4]} 24... Rhd8 {[%clk 0:01:29.8]} 25. Kh3
{[%clk 0:01:46.8]} 25... Bc5 {[%clk 0:01:15.1]} 26. Nc3 {[%clk 0:01:37.7]} 26...
f5 {[%clk 0:01:06.1]} 27. exf5 {[%clk 0:01:36.7]} 27... exf5 {[%clk 0:01:07]}
28. Re1+ {[%clk 0:01:35]} 28... Kf6 {[%clk 0:01:05.5]} 29. Rbd1 {[%clk 0:01:26]}
29... g5 {[%clk 0:00:59.3]} 30. Bd3 {[%clk 0:01:05.4]} 30... h5 {[%clk
0:00:55.3]} 31. Re5 {[%clk 0:00:58.2]} 31... Nd4 {[%clk 0:00:46.3]} 32. Rde1
{[%clk 0:00:46.9]} 32... b5 {[%clk 0:00:40.6]} 33. axb5 {[%clk 0:00:45.9]} 33...
axb5 {[%clk 0:00:41.5]} 34. Na5 {[%clk 0:00:44.9]} 34... g4+ {[%clk 0:00:39.1]}
35. Kh4 {[%clk 0:00:31.2]} 35... Bxf3 {[%clk 0:00:38.7]} 36. Nxb5 {[%clk
0:00:30.9]} 36... Be4 {[%clk 0:00:15.3]} 37. Nxd4 {[%clk 0:00:25.1]} 37... Bxd4
{[%clk 0:00:14.3]} 38. Bxe4 {[%clk 0:00:15.2]} 38... Kxe5 {[%clk 0:00:14.1]} 39.
Bb7+ {[%clk 0:00:15.1]} 39... Kf6 {[%clk 0:00:13.8]} 40. Bxc8 {[%clk 0:00:15.1]}
40... Bf2+ {[%clk 0:00:13.5]} 41. g3 {[%clk 0:00:11.9]} 41... Bxe1 {[%clk
0:00:13.9]} 0-1